[Event "Early-Titled-Tuesday-Blitz-January-30-2024"]
[Site "Chess.com"]
[Date "2024.01.30"]
[Round "3"]
[White "Zavgorodniy_Sergiy"]
[Black "snowlord"]
[Result "1-0"]
[WhiteElo "2619"]
[BlackElo "2848"]
[TimeControl "180+1"]
[EndTime "8:31:30 PST"]
[Termination "Zavgorodniy_Sergiy won by resignation"]

1. e4 {[%clk 0:03:00.9]} 1... c5 {[%clk 0:02:59.4]} 2. Nf3 {[%clk 0:02:53.1]}
2... d6 {[%clk 0:02:59.7]} 3. c3 {[%clk 0:02:52.6]} 3... Nf6 {[%clk 0:02:59.6]}
4. Bc4 {[%clk 0:02:50.5]} 4... e6 {[%clk 0:02:58.5]} 5. Qe2 {[%clk 0:02:49.6]}
5... Nc6 {[%clk 0:02:51.7]} 6. Bb3 {[%clk 0:02:44.4]} 6... Be7 {[%clk 0:02:26]}
7. O-O {[%clk 0:02:42.8]} 7... O-O {[%clk 0:02:25.9]} 8. d4 {[%clk 0:02:42.8]}
8... d5 {[%clk 0:02:23.8]} 9. e5 {[%clk 0:02:42.2]} 9... Ne4 {[%clk 0:02:23.8]}
10. Nbd2 {[%clk 0:02:41.9]} 10... f5 {[%clk 0:02:12.3]} 11. exf6 {[%clk
0:02:40.9]} 11... Nxf6 {[%clk 0:02:12]} 12. Re1 {[%clk 0:02:34.2]} 12... cxd4
{[%clk 0:01:27.6]} 13. Nxd4 {[%clk 0:02:28.4]} 13... e5 {[%clk 0:01:27.6]} 14.
Nxc6 {[%clk 0:02:21.7]} 14... bxc6 {[%clk 0:01:28.5]} 15. Qxe5 {[%clk
0:02:21.8]} 15... Bc5 {[%clk 0:01:25.7]} 16. Ne4 {[%clk 0:01:58.8]} 16... Nxe4
{[%clk 0:01:13]} 17. Rxe4 {[%clk 0:01:53]} 17... Bxf2+ {[%clk 0:00:59.6]} 18.
Kh1 {[%clk 0:01:52.8]} 18... Bd4 {[%clk 0:00:59.8]} 19. Qxd4 {[%clk 0:01:48.8]}
19... Rf1+ {[%clk 0:00:59.4]} 20. Qg1 {[%clk 0:01:49.5]} 20... Rxg1+ {[%clk
0:01:00]} 21. Kxg1 {[%clk 0:01:50.4]} 21... Bf5 {[%clk 0:00:47.9]} 22. Re5
{[%clk 0:01:49.7]} 22... Qf6 {[%clk 0:00:43]} 23. Bf4 {[%clk 0:01:46.4]} 23...
Rf8 {[%clk 0:00:39.7]} 24. Bg3 {[%clk 0:01:43.1]} 24... Qg6 {[%clk 0:00:27.6]}
25. Rae1 {[%clk 0:01:27.3]} 25... Bd3 {[%clk 0:00:27.2]} 26. R5e3 {[%clk
0:01:05.8]} 26... h5 {[%clk 0:00:21.6]} 27. h4 {[%clk 0:01:05.9]} 27... Kh7
{[%clk 0:00:21.3]} 28. Kh2 {[%clk 0:01:06.1]} 28... Be4 {[%clk 0:00:19.7]} 29.
R3e2 {[%clk 0:00:45]} 29... a5 {[%clk 0:00:17.4]} 30. c4 {[%clk 0:00:43.4]}
30... Bd3 {[%clk 0:00:15]} 31. Re6 {[%clk 0:00:42.6]} 31... Rf6 {[%clk 0:00:08]}
32. cxd5 {[%clk 0:00:41.2]} 32... cxd5 {[%clk 0:00:07.8]} 33. Bxd5 {[%clk
0:00:41.2]} 33... Rxe6 {[%clk 0:00:06.2]} 34. Rxe6 {[%clk 0:00:42.1]} 34... Qf5
{[%clk 0:00:06.5]} 35. Re5 {[%clk 0:00:42.1]} 35... Qg6 {[%clk 0:00:05]} 36. Rg5
{[%clk 0:00:41.8]} 36... Qh6 {[%clk 0:00:03.5]} 37. Bf3 {[%clk 0:00:41.7]} 37...
g6 {[%clk 0:00:03.5]} 38. Re5 {[%clk 0:00:41.5]} 38... Qg7 {[%clk 0:00:02.6]}
39. Rxa5 {[%clk 0:00:39.7]} 39... Bf5 {[%clk 0:00:03.1]} 40. b4 {[%clk
0:00:38.1]} 40... Qb2 {[%clk 0:00:03.2]} 41. Ra7+ {[%clk 0:00:37.1]} 41... Kg8
{[%clk 0:00:03.3]} 42. Bd5+ {[%clk 0:00:36.2]} 42... Kf8 {[%clk 0:00:04]} 43.
Bd6+ {[%clk 0:00:35.6]} 43... Ke8 {[%clk 0:00:01.8]} 44. Bc6+ {[%clk 0:00:35.2]}
44... Kd8 {[%clk 0:00:02.5]} 45. Ra8+ {[%clk 0:00:34]} 45... Bc8 {[%clk
0:00:03.2]} 46. Bb7 {[%clk 0:00:33.2]} 46... Qd4 {[%clk 0:00:03.7]} 47. Rxc8+
{[%clk 0:00:32.3]} 47... Kd7 {[%clk 0:00:04.4]} 48. Bg3 {[%clk 0:00:32.2]} 48...
Qxb4 {[%clk 0:00:04.8]} 49. Rc7+ {[%clk 0:00:30.9]} 49... Ke6 {[%clk 0:00:04.6]}
50. Bf3 {[%clk 0:00:28.6]} 50... Qa3 {[%clk 0:00:04.4]} 51. Rc6+ {[%clk
0:00:28.7]} 51... Kf7 {[%clk 0:00:05]} 52. Rc2 {[%clk 0:00:28.4]} 52... Qd3
{[%clk 0:00:04.7]} 53. Re2 {[%clk 0:00:24.8]} 53... Qc4 {[%clk 0:00:02.6]} 54.
Rf2 {[%clk 0:00:24.2]} 54... Kg8 {[%clk 0:00:02.4]} 55. Bd1 {[%clk 0:00:20.6]}
55... Kh7 {[%clk 0:00:02.6]} 56. Bb3 {[%clk 0:00:21]} 56... Qg4 {[%clk
0:00:02.3]} 57. Rf7+ {[%clk 0:00:19.4]} 57... Kh8 {[%clk 0:00:02.9]} 58. Be5+
{[%clk 0:00:18.6]} 1-0

[Event "Early-Titled-Tuesday-Blitz-January-30-2024"]
[Site "Chess.com"]
[Date "2024.01.30"]
[Round "3"]
[White "MusicCityMaster"]
[Black "SmirnovAlexandrA"]
[Result "1/2-1/2"]
[WhiteElo "2441"]
[BlackElo "2600"]
[TimeControl "180+1"]
[EndTime "8:31:36 PST"]
[Termination "Game drawn by repetition"]

1. d4 {[%clk 0:03:00.9]} 1... Nf6 {[%clk 0:02:54.2]} 2. c4 {[%clk 0:02:55.9]}
2... g6 {[%clk 0:02:51.1]} 3. Nc3 {[%clk 0:02:55.6]} 3... Bg7 {[%clk 0:02:49.5]}
4. e4 {[%clk 0:02:55.6]} 4... d6 {[%clk 0:02:49]} 5. Nf3 {[%clk 0:02:55.9]} 5...
O-O {[%clk 0:02:47.3]} 6. Be2 {[%clk 0:02:56]} 6... c5 {[%clk 0:02:44.1]} 7. d5
{[%clk 0:02:54]} 7... e6 {[%clk 0:02:40.3]} 8. O-O {[%clk 0:02:52.2]} 8... exd5
{[%clk 0:02:32.8]} 9. cxd5 {[%clk 0:02:53.1]} 9... Re8 {[%clk 0:02:31.3]} 10.
Nd2 {[%clk 0:02:48.1]} 10... a6 {[%clk 0:02:26.6]} 11. a4 {[%clk 0:02:39.1]}
11... Nbd7 {[%clk 0:02:22]} 12. f4 {[%clk 0:02:35.5]} 12... Rb8 {[%clk
0:02:19.5]} 13. Qc2 {[%clk 0:02:29.6]} 13... b5 {[%clk 0:01:52.9]} 14. axb5
{[%clk 0:02:26.5]} 14... axb5 {[%clk 0:01:53.8]} 15. Nxb5 {[%clk 0:02:17.8]}
15... Qb6 {[%clk 0:01:23.6]} 16. Nc3 {[%clk 0:01:54.7]} 16... Bb7 {[%clk
0:01:06.3]} 17. Nc4 {[%clk 0:01:46]} 17... Qc7 {[%clk 0:00:57.8]} 18. Bf3 {[%clk
0:01:24.7]} 18... Bc8 {[%clk 0:00:50.9]} 19. Kh1 {[%clk 0:01:18.7]} 19... Rb4
{[%clk 0:00:48.1]} 20. Nd2 {[%clk 0:00:59.8]} 20... Qb6 {[%clk 0:00:35.9]} 21.
Ra8 {[%clk 0:00:53.4]} 21... Bb7 {[%clk 0:00:31.8]} 22. Rxe8+ {[%clk 0:00:52.3]}
22... Nxe8 {[%clk 0:00:32.7]} 23. Re1 {[%clk 0:00:41.2]} 23... Nc7 {[%clk
0:00:32.6]} 24. Nf1 {[%clk 0:00:40.3]} 24... Nb5 {[%clk 0:00:30.7]} 25. Nxb5
{[%clk 0:00:37.5]} 25... Qxb5 {[%clk 0:00:31.5]} 26. Re2 {[%clk 0:00:30.9]}
26... c4 {[%clk 0:00:29]} 27. h3 {[%clk 0:00:22.8]} 27... Nc5 {[%clk 0:00:27.1]}
28. e5 {[%clk 0:00:21.2]} 28... dxe5 {[%clk 0:00:24.6]} 29. fxe5 {[%clk
0:00:22.1]} 29... Nd3 {[%clk 0:00:20.3]} 30. e6 {[%clk 0:00:19.1]} 30... fxe6
{[%clk 0:00:20.9]} 31. dxe6 {[%clk 0:00:19.4]} 31... Bxf3 {[%clk 0:00:19.7]} 32.
gxf3 {[%clk 0:00:19.8]} 32... Nxc1 {[%clk 0:00:16.6]} 33. e7 {[%clk 0:00:18.9]}
33... Qe8 {[%clk 0:00:14.2]} 34. Qxc1 {[%clk 0:00:18.4]} 34... Bf6 {[%clk
0:00:10.3]} 35. Qf4 {[%clk 0:00:18.1]} 35... Bxe7 {[%clk 0:00:08.9]} 36. Qe5
{[%clk 0:00:17.7]} 36... Kf7 {[%clk 0:00:08.9]} 37. Qd5+ {[%clk 0:00:17.7]}
37... Kf8 {[%clk 0:00:08.9]} 38. Ng3 {[%clk 0:00:17.7]} 38... Rb6 {[%clk
0:00:08.5]} 39. Ne4 {[%clk 0:00:17.4]} 39... Qd8 {[%clk 0:00:07.3]} 40. Qxc4
{[%clk 0:00:17.1]} 40... Qb8 {[%clk 0:00:04]} 41. Kg2 {[%clk 0:00:17.1]} 41...
Qb7 {[%clk 0:00:04.1]} 42. Qd3 {[%clk 0:00:16.6]} 42... Rxb2 {[%clk 0:00:02.9]}
43. Ng3 {[%clk 0:00:16.6]} 43... Rxe2+ {[%clk 0:00:03]} 44. Qxe2 {[%clk
0:00:17.5]} 44... Qc7 {[%clk 0:00:03.4]} 45. Qe6 {[%clk 0:00:17.4]} 45... Qd6
{[%clk 0:00:03.4]} 46. Qxd6 {[%clk 0:00:17.3]} 46... Bxd6 {[%clk 0:00:04.3]} 47.
Ne4 {[%clk 0:00:18]} 47... Be7 {[%clk 0:00:04.4]} 48. Kf2 {[%clk 0:00:18.3]}
48... Kg7 {[%clk 0:00:05]} 49. Ke3 {[%clk 0:00:18.7]} 49... Bd8 {[%clk
0:00:05.2]} 50. Kf4 {[%clk 0:00:18.9]} 50... h6 {[%clk 0:00:05.6]} 51. Kg4
{[%clk 0:00:19.3]} 51... Bc7 {[%clk 0:00:06.5]} 52. f4 {[%clk 0:00:19]} 52...
h5+ {[%clk 0:00:06.8]} 53. Kf3 {[%clk 0:00:19.2]} 53... Bd8 {[%clk 0:00:06.8]}
54. Nc5 {[%clk 0:00:19.4]} 54... Kh6 {[%clk 0:00:07]} 55. Ne6 {[%clk 0:00:19.6]}
55... Bf6 {[%clk 0:00:07.1]} 56. Ke4 {[%clk 0:00:19.7]} 56... Be7 {[%clk
0:00:07.1]} 57. Ke5 {[%clk 0:00:19.8]} 57... Ba3 {[%clk 0:00:05.8]} 58. Kf6
{[%clk 0:00:19.5]} 58... Bb2+ {[%clk 0:00:06.7]} 59. Kf7 {[%clk 0:00:19.2]}
59... Bc1 {[%clk 0:00:07]} 60. Kf6 {[%clk 0:00:17.8]} 60... Bb2+ {[%clk
0:00:07.1]} 61. Kf7 {[%clk 0:00:17.8]} 61... Bc1 {[%clk 0:00:07.6]} 62. Kf6
{[%clk 0:00:16.3]} 62... Bb2+ {[%clk 0:00:07.8]} 1/2-1/2

[Event "Early-Titled-Tuesday-Blitz-January-30-2024"]
[Site "Chess.com"]
[Date "2024.01.30"]
[Round "3"]
[White "RCone"]
[Black "arnash_bauyrzhan"]
[Result "1-0"]
[WhiteElo "2416"]
[BlackElo "2197"]
[TimeControl "180+1"]
[EndTime "8:31:36 PST"]
[Termination "RCone won by resignation"]

1. e4 {[%clk 0:03:00.9]} 1... c5 {[%clk 0:02:55.3]} 2. Nc3 {[%clk 0:02:57.8]}
2... Nc6 {[%clk 0:02:54.9]} 3. Bb5 {[%clk 0:02:56.3]} 3... Nd4 {[%clk
0:02:54.1]} 4. Nf3 {[%clk 0:02:57]} 4... a6 {[%clk 0:02:43.8]} 5. Bd3 {[%clk
0:02:55.9]} 5... d6 {[%clk 0:02:37.4]} 6. O-O {[%clk 0:02:49.3]} 6... Nf6 {[%clk
0:02:36.7]} 7. Re1 {[%clk 0:02:48.4]} 7... e5 {[%clk 0:02:33.1]} 8. Nxd4 {[%clk
0:02:33.4]} 8... cxd4 {[%clk 0:02:34]} 9. Ne2 {[%clk 0:02:33.4]} 9... Be7 {[%clk
0:02:31.5]} 10. Ng3 {[%clk 0:02:31.5]} 10... Qc7 {[%clk 0:02:26.7]} 11. b3
{[%clk 0:02:29.7]} 11... O-O {[%clk 0:02:24.2]} 12. a4 {[%clk 0:02:28.2]} 12...
Be6 {[%clk 0:02:20.6]} 13. h3 {[%clk 0:02:20.2]} 13... Nd7 {[%clk 0:02:15.6]}
14. Nf5 {[%clk 0:02:09.5]} 14... Bxf5 {[%clk 0:02:04.7]} 15. exf5 {[%clk
0:02:10.4]} 15... Nc5 {[%clk 0:02:05.1]} 16. Bc4 {[%clk 0:02:08.2]} 16... b5
{[%clk 0:01:49.4]} 17. Bd5 {[%clk 0:01:59.2]} 17... Rab8 {[%clk 0:01:49]} 18.
axb5 {[%clk 0:01:59.1]} 18... axb5 {[%clk 0:01:47.6]} 19. d3 {[%clk 0:01:51.9]}
19... Nd7 {[%clk 0:01:45.6]} 20. b4 {[%clk 0:01:40.1]} 20... Nf6 {[%clk
0:01:45.2]} 21. Bb3 {[%clk 0:01:40.8]} 21... d5 {[%clk 0:01:42.7]} 22. Bb2
{[%clk 0:01:32.6]} 22... Bxb4 {[%clk 0:01:38.1]} 23. Rf1 {[%clk 0:01:21.8]}
23... Bc3 {[%clk 0:01:37.5]} 24. Bxc3 {[%clk 0:01:12.4]} 24... Qxc3 {[%clk
0:01:26.9]} 25. Qe2 {[%clk 0:01:05.8]} 25... e4 {[%clk 0:01:23]} 26. Ra6 {[%clk
0:00:58.2]} 26... Rfe8 {[%clk 0:01:07.5]} 27. Rxf6 {[%clk 0:00:49.5]} 27... gxf6
{[%clk 0:01:02.8]} 28. Qg4+ {[%clk 0:00:42.3]} 28... Kh8 {[%clk 0:00:58]} 29.
Qh4 {[%clk 0:00:36.5]} 29... Qc6 {[%clk 0:00:55.6]} 30. dxe4 {[%clk 0:00:33.4]}
30... Rxe4 {[%clk 0:00:46.4]} 31. Qh5 {[%clk 0:00:33.4]} 31... Kg7 {[%clk
0:00:34.9]} 32. Rd1 {[%clk 0:00:28.6]} 32... Rbe8 {[%clk 0:00:32.5]} 33. Rd3
{[%clk 0:00:28.9]} 33... Kf8 {[%clk 0:00:15.8]} 34. f3 {[%clk 0:00:13.6]} 34...
Re3 {[%clk 0:00:14.6]} 35. Rxd4 {[%clk 0:00:13.3]} 35... Qc5 {[%clk 0:00:14.1]}
36. Qh6+ {[%clk 0:00:12.3]} 36... Ke7 {[%clk 0:00:13.7]} 37. Qxe3+ {[%clk
0:00:11.9]} 37... Kd6 {[%clk 0:00:10.6]} 38. Qf4+ {[%clk 0:00:10.7]} 38... Kc6
{[%clk 0:00:09.2]} 39. Kh2 {[%clk 0:00:10.9]} 39... Re5 {[%clk 0:00:08.5]} 40.
Qd2 {[%clk 0:00:09.7]} 40... Rxf5 {[%clk 0:00:07.6]} 41. Rd3 {[%clk 0:00:09]}
41... Qd6+ {[%clk 0:00:07]} 42. g3 {[%clk 0:00:08.1]} 42... Re5 {[%clk
0:00:06.9]} 43. Re3 {[%clk 0:00:07.3]} 43... Rxe3 {[%clk 0:00:06.6]} 44. Qxe3
{[%clk 0:00:08.2]} 44... d4 {[%clk 0:00:07.2]} 45. Qe4+ {[%clk 0:00:08.2]} 45...
Kc5 {[%clk 0:00:07.8]} 46. Kg2 {[%clk 0:00:07.8]} 46... Qb6 {[%clk 0:00:05.9]}
47. g4 {[%clk 0:00:07.4]} 47... Qa5 {[%clk 0:00:06.2]} 48. Qd5+ {[%clk
0:00:07.3]} 48... Kb6 {[%clk 0:00:05.2]} 49. Qxd4+ {[%clk 0:00:08.2]} 49... Kc6
{[%clk 0:00:05.7]} 50. Qe4+ {[%clk 0:00:07.8]} 50... Kc5 {[%clk 0:00:05.8]} 51.
Qe3+ {[%clk 0:00:06.9]} 51... Kc6 {[%clk 0:00:05.9]} 52. Qe8+ {[%clk 0:00:05.6]}
52... Kc5 {[%clk 0:00:06.1]} 53. Qc8+ {[%clk 0:00:05.2]} 53... Kd4 {[%clk
0:00:05.8]} 54. Qd7+ {[%clk 0:00:04.9]} 54... Kc5 {[%clk 0:00:05.6]} 55. Qd5+
{[%clk 0:00:04.5]} 55... Kb6 {[%clk 0:00:06.2]} 56. Qd8+ {[%clk 0:00:04.8]}
56... Kc5 {[%clk 0:00:06.3]} 57. Qxa5 {[%clk 0:00:05]} 57... Kd4 {[%clk
0:00:06]} 58. Qxb5 {[%clk 0:00:04.9]} 1-0

[Event "Early-Titled-Tuesday-Blitz-January-30-2024"]
[Site "Chess.com"]
[Date "2024.01.30"]
[Round "3"]
[White "JuniorJumper"]
[Black "Pliukha_Mikhail"]
[Result "0-1"]
[WhiteElo "2516"]
[BlackElo "2763"]
[TimeControl "180+1"]
[EndTime "8:31:38 PST"]
[Termination "Pliukha_Mikhail won on time"]

1. b3 {[%clk 0:03:00.9]} 1... d5 {[%clk 0:03:00.9]} 2. Bb2 {[%clk 0:02:57.9]}
2... Nf6 {[%clk 0:02:52.3]} 3. e3 {[%clk 0:02:57.7]} 3... c5 {[%clk 0:02:45.9]}
4. Nf3 {[%clk 0:02:56.6]} 4... Nc6 {[%clk 0:02:45.6]} 5. Bb5 {[%clk 0:02:54.8]}
5... Bd7 {[%clk 0:02:42]} 6. O-O {[%clk 0:02:53.5]} 6... e6 {[%clk 0:02:42.1]}
7. d3 {[%clk 0:02:49.4]} 7... a6 {[%clk 0:02:40.7]} 8. Bxc6 {[%clk 0:02:49.3]}
8... Bxc6 {[%clk 0:02:41.6]} 9. Ne5 {[%clk 0:02:49.8]} 9... Bd6 {[%clk
0:02:41.5]} 10. Nd2 {[%clk 0:02:46.3]} 10... Qc7 {[%clk 0:02:40.2]} 11. f4
{[%clk 0:02:45.9]} 11... Nd7 {[%clk 0:02:40.1]} 12. Nxc6 {[%clk 0:02:27]} 12...
Qxc6 {[%clk 0:02:41]} 13. Bxg7 {[%clk 0:02:27.3]} 13... Rg8 {[%clk 0:02:41.5]}
14. Bb2 {[%clk 0:02:26]} 14... d4 {[%clk 0:02:41.9]} 15. e4 {[%clk 0:02:25.9]}
15... O-O-O {[%clk 0:02:41.8]} 16. Qf3 {[%clk 0:02:24.2]} 16... Bc7 {[%clk
0:02:28.5]} 17. Rae1 {[%clk 0:02:13.3]} 17... f6 {[%clk 0:02:16.9]} 18. a4
{[%clk 0:01:47.8]} 18... Rg7 {[%clk 0:02:13.4]} 19. Kh1 {[%clk 0:01:44.9]} 19...
Rdg8 {[%clk 0:02:13.5]} 20. g3 {[%clk 0:01:45.6]} 20... Rg4 {[%clk 0:02:07.4]}
21. Rg1 {[%clk 0:01:26.4]} 21... h5 {[%clk 0:02:07.4]} 22. h3 {[%clk 0:01:24.8]}
22... R4g7 {[%clk 0:02:07.1]} 23. Qxh5 {[%clk 0:00:53.6]} 23... Rxg3 {[%clk
0:02:06.4]} 24. Rxg3 {[%clk 0:00:54.2]} 24... Rxg3 {[%clk 0:02:07.3]} 25. Qh8+
{[%clk 0:00:45.1]} 25... Bd8 {[%clk 0:02:06.8]} 26. Rg1 {[%clk 0:00:45.5]} 26...
Rxg1+ {[%clk 0:01:57.3]} 27. Kxg1 {[%clk 0:00:46.4]} 27... f5 {[%clk 0:01:54.4]}
28. e5 {[%clk 0:00:38.2]} 28... Kc7 {[%clk 0:01:51.5]} 29. Bc1 {[%clk
0:00:32.8]} 29... b5 {[%clk 0:01:51.1]} 30. a5 {[%clk 0:00:31.1]} 30... c4
{[%clk 0:01:41.4]} 31. bxc4 {[%clk 0:00:29.5]} 31... bxc4 {[%clk 0:01:42.3]} 32.
Nxc4 {[%clk 0:00:27.8]} 32... Qf3 {[%clk 0:01:42.1]} 33. Ba3 {[%clk 0:00:19.5]}
33... Qd1+ {[%clk 0:01:35.3]} 34. Kg2 {[%clk 0:00:17.3]} 34... Qxc2+ {[%clk
0:01:35]} 35. Kg1 {[%clk 0:00:16.7]} 35... Qd1+ {[%clk 0:01:31.7]} 36. Kg2
{[%clk 0:00:15.8]} 36... Qe2+ {[%clk 0:01:29.3]} 37. Kg1 {[%clk 0:00:16]} 37...
Qe1+ {[%clk 0:01:19]} 38. Kg2 {[%clk 0:00:15.2]} 38... Bh4 {[%clk 0:01:16.9]}
39. Qg7 {[%clk 0:00:10.2]} 39... Qf2+ {[%clk 0:01:10.5]} 40. Kh1 {[%clk
0:00:09.9]} 40... Qf3+ {[%clk 0:01:09.5]} 41. Qg2 {[%clk 0:00:06.1]} 41... Qxg2+
{[%clk 0:00:13.3]} 42. Kxg2 {[%clk 0:00:07]} 42... Be1 {[%clk 0:00:12.4]} 43.
Bd6+ {[%clk 0:00:06.6]} 43... Kc6 {[%clk 0:00:12.4]} 44. Kf3 {[%clk 0:00:07]}
44... Kd5 {[%clk 0:00:12.6]} 45. Bc7 {[%clk 0:00:04.1]} 45... Kc6 {[%clk
0:00:12.8]} 46. Bd8 {[%clk 0:00:04]} 46... Nf8 {[%clk 0:00:13.4]} 47. h4 {[%clk
0:00:03.9]} 47... Ng6 {[%clk 0:00:13.8]} 48. h5 {[%clk 0:00:04.5]} 48... Nh8
{[%clk 0:00:13.9]} 49. h6 {[%clk 0:00:04.8]} 49... Nf7 {[%clk 0:00:14.6]} 50. h7
{[%clk 0:00:04.9]} 50... Kd7 {[%clk 0:00:14.9]} 51. Bf6 {[%clk 0:00:05.4]} 51...
Kc6 {[%clk 0:00:15.5]} 52. h8=Q {[%clk 0:00:06.3]} 52... Nxh8 {[%clk 0:00:15.6]}
53. Bxh8 {[%clk 0:00:07.2]} 53... Kb5 {[%clk 0:00:16.5]} 54. Bf6 {[%clk
0:00:07.9]} 54... Kb4 {[%clk 0:00:17.1]} 55. Be7+ {[%clk 0:00:08.1]} 55... Kc3
{[%clk 0:00:17.3]} 56. Bc5 {[%clk 0:00:08.4]} 56... Kxd3 {[%clk 0:00:17]} 57.
Nb6 {[%clk 0:00:09]} 57... Bxa5 {[%clk 0:00:16.5]} 58. Nd7 {[%clk 0:00:09.6]}
58... Kc4 {[%clk 0:00:13.5]} 59. Bd6 {[%clk 0:00:09]} 59... d3 {[%clk
0:00:14.1]} 60. Ke3 {[%clk 0:00:09.1]} 60... Kc3 {[%clk 0:00:12.8]} 61. Nc5
{[%clk 0:00:09.4]} 61... d2 {[%clk 0:00:11.8]} 62. Na4+ {[%clk 0:00:04.6]} 62...
Kc2 {[%clk 0:00:12.1]} 63. Nc3 {[%clk 0:00:02.4]} 63... Bxc3 {[%clk 0:00:11.7]}
0-1

[Event "Early-Titled-Tuesday-Blitz-January-30-2024"]
[Site "Chess.com"]
[Date "2024.01.30"]
[Round "3"]
[White "Akylbek2021"]
[Black "GiorgianBarbosa"]
[Result "1-0"]
[WhiteElo "2285"]
[BlackElo "2492"]
[TimeControl "180+1"]
[EndTime "8:31:42 PST"]
[Termination "Akylbek2021 won by resignation"]

1. d4 {[%clk 0:02:57.7]} 1... Nf6 {[%clk 0:02:45.4]} 2. c4 {[%clk 0:02:57.9]}
2... e6 {[%clk 0:02:45.1]} 3. g3 {[%clk 0:02:58.5]} 3... d5 {[%clk 0:02:45.3]}
4. Nf3 {[%clk 0:02:58.5]} 4... Be7 {[%clk 0:02:45.6]} 5. Bg2 {[%clk 0:02:59.2]}
5... O-O {[%clk 0:02:46.2]} 6. Nc3 {[%clk 0:02:59.9]} 6... a5 {[%clk 0:02:22.8]}
7. O-O {[%clk 0:02:59.2]} 7... c6 {[%clk 0:02:20.2]} 8. Ne5 {[%clk 0:02:45.6]}
8... Nfd7 {[%clk 0:02:17.5]} 9. e4 {[%clk 0:02:30.3]} 9... Nxe5 {[%clk
0:02:10.7]} 10. dxe5 {[%clk 0:02:30.5]} 10... dxc4 {[%clk 0:02:09.6]} 11. a4
{[%clk 0:02:29.5]} 11... Qxd1 {[%clk 0:02:05]} 12. Rxd1 {[%clk 0:02:30.4]} 12...
b6 {[%clk 0:02:00.5]} 13. Be3 {[%clk 0:02:25.5]} 13... c5 {[%clk 0:01:52.1]} 14.
Nb5 {[%clk 0:02:17.6]} 14... Nc6 {[%clk 0:01:47.5]} 15. f4 {[%clk 0:02:12.1]}
15... Bb7 {[%clk 0:01:42]} 16. Nd6 {[%clk 0:02:01.9]} 16... Ba6 {[%clk
0:01:39.1]} 17. Bf1 {[%clk 0:01:53]} 17... Nb4 {[%clk 0:01:35.6]} 18. Rac1
{[%clk 0:01:16.7]} 18... Na2 {[%clk 0:01:13.6]} 19. Rc2 {[%clk 0:01:13.7]} 19...
Nb4 {[%clk 0:01:13.5]} 20. Rcd2 {[%clk 0:01:13.3]} 20... Nd3 {[%clk 0:00:57.2]}
21. Nxc4 {[%clk 0:01:02.7]} 21... Bxc4 {[%clk 0:00:58.1]} 22. Bxd3 {[%clk
0:01:02.9]} 22... Bb3 {[%clk 0:00:57.5]} 23. Bc2 {[%clk 0:01:00.9]} 23... Bxc2
{[%clk 0:00:56.7]} 24. Rxc2 {[%clk 0:01:01.8]} 24... Rfd8 {[%clk 0:00:56.8]} 25.
Rcd2 {[%clk 0:00:58.7]} 25... Rxd2 {[%clk 0:00:54.9]} 26. Rxd2 {[%clk
0:00:58.9]} 26... Rd8 {[%clk 0:00:54.6]} 27. Rxd8+ {[%clk 0:00:58.9]} 27... Bxd8
{[%clk 0:00:55.5]} 28. b3 {[%clk 0:00:57.3]} 28... Kf8 {[%clk 0:00:55.2]} 29.
Kf1 {[%clk 0:00:52.6]} 29... Ke8 {[%clk 0:00:56.1]} 30. Ke2 {[%clk 0:00:53]}
30... Kd7 {[%clk 0:00:57]} 31. Kd3 {[%clk 0:00:53.7]} 31... Kc6 {[%clk
0:00:57.9]} 32. Kc4 {[%clk 0:00:54.2]} 32... g6 {[%clk 0:00:51.3]} 33. g4 {[%clk
0:00:52]} 33... h6 {[%clk 0:00:38.8]} 34. h3 {[%clk 0:00:37.8]} 34... Bh4 {[%clk
0:00:37.4]} 35. f5 {[%clk 0:00:17.7]} 35... h5 {[%clk 0:00:31.9]} 36. Bf4 {[%clk
0:00:15.9]} 36... Bf2 {[%clk 0:00:30.8]} 37. Bh2 {[%clk 0:00:03.4]} 37... h4
{[%clk 0:00:28.2]} 38. Bf4 {[%clk 0:00:03.3]} 38... Bg3 {[%clk 0:00:27.6]} 39.
Bg5 {[%clk 0:00:01.3]} 39... Bxe5 {[%clk 0:00:26.8]} 40. Bxh4 {[%clk 0:00:01.6]}
40... Bd4 {[%clk 0:00:22.3]} 41. fxg6 {[%clk 0:00:01.6]} 41... fxg6 {[%clk
0:00:20.3]} 42. Bg5 {[%clk 0:00:02.4]} 42... Bh8 {[%clk 0:00:13.1]} 43. h4
{[%clk 0:00:03]} 43... Bg7 {[%clk 0:00:13]} 44. h5 {[%clk 0:00:03.3]} 44... gxh5
{[%clk 0:00:13.9]} 45. gxh5 {[%clk 0:00:04.2]} 45... Bh8 {[%clk 0:00:14.8]} 46.
h6 {[%clk 0:00:04.5]} 46... Be5 {[%clk 0:00:13.3]} 47. Be7 {[%clk 0:00:05.1]}
47... Kd7 {[%clk 0:00:08.8]} 48. Bf8 {[%clk 0:00:05.4]} 48... Ke8 {[%clk
0:00:02.6]} 49. Bg7 {[%clk 0:00:05.9]} 49... Bxg7 {[%clk 0:00:01]} 50. hxg7
{[%clk 0:00:06.8]} 50... Kf7 {[%clk 0:00:01.8]} 51. Kb5 {[%clk 0:00:07.5]} 51...
Kxg7 {[%clk 0:00:02.1]} 52. Kxb6 {[%clk 0:00:08.2]} 52... Kf6 {[%clk 0:00:02.2]}
53. Kxa5 {[%clk 0:00:04.3]} 53... Ke5 {[%clk 0:00:03.1]} 54. Kb5 {[%clk
0:00:04.5]} 54... Kxe4 {[%clk 0:00:04]} 55. a5 {[%clk 0:00:05.3]} 55... Kf3
{[%clk 0:00:04.3]} 56. a6 {[%clk 0:00:05.9]} 56... e5 {[%clk 0:00:04.5]} 57. a7
{[%clk 0:00:06.5]} 57... e4 {[%clk 0:00:05]} 58. a8=Q {[%clk 0:00:07.3]} 58...
c4 {[%clk 0:00:04.1]} 59. bxc4 {[%clk 0:00:06.9]} 1-0